[Event "Titled Tuesday Blitz May 16 Early 2023"]
[White "Koutsin, Sergey"]
[Black "Piesik, Piotr"]
[WhiteFideId "14101483"]
[BlackFideId "1136194"]
[WhiteElo "2381"]
[BlackElo "2299"]
[Result "1/2-1/2"]
[Round "09"]
[TimeControl "180+2"]
[Date "2023.05.16"]
[WhiteClock "0:00:31"]
[BlackClock "0:00:41"]

1. d4 {[%clk 0:03:00]}  c5 {[%clk 0:02:57]} 2. d5 {[%clk 0:03:00]}  e5 {[%clk 0:02:57]} 3. e4 {[%clk 0:02:59]}  d6 {[%clk 0:02:58]} 4. Bb5+ {[%clk 0:02:57]}  Nd7 {[%clk 0:02:58]} 5. a4 {[%clk 0:02:56]}  Be7 {[%clk 0:02:58]} 6. Nc3 {[%clk 0:02:56]}  Bg5 {[%clk 0:02:58]} 7. Nf3 {[%clk 0:02:48]}  Bxc1 {[%clk 0:02:57]} 8. Qxc1 {[%clk 0:02:46]}  Ne7 {[%clk 0:02:58]} 9. O-O {[%clk 0:02:45]}  O-O {[%clk 0:02:58]} 10. Nd2 {[%clk 0:02:45]}  Ng6 {[%clk 0:02:55]} 11. g3 {[%clk 0:02:41]}  Nf6 {[%clk 0:02:55]} 12. f3 {[%clk 0:02:39]}  Bh3 {[%clk 0:02:53]} 13. Rf2 {[%clk 0:02:39]}  Ne8 {[%clk 0:02:52]} 14. Nf1 {[%clk 0:02:35]}  f5 {[%clk 0:02:52]} 15. exf5 {[%clk 0:02:32]}  Bxf5 {[%clk 0:02:52]} 16. Ne3 {[%clk 0:02:30]}  Bh3 {[%clk 0:02:49]} 17. Bd3 {[%clk 0:02:27]}  Nf6 {[%clk 0:02:43]} 18. Qd2 {[%clk 0:02:20]}  Qd7 {[%clk 0:02:39]} 19. b3 {[%clk 0:02:18]}  Ne7 {[%clk 0:02:37]} 20. Bc4 {[%clk 0:01:47]}  Nf5 {[%clk 0:02:36]} 21. Nxf5 {[%clk 0:01:47]}  Qxf5 {[%clk 0:02:30]} 22. Bd3 {[%clk 0:01:47]}  Qh5 {[%clk 0:02:28]} 23. Bf1 {[%clk 0:01:35]}  a6 {[%clk 0:02:24]} 24. Re1 {[%clk 0:01:32]}  Rf7 {[%clk 0:02:22]} 25. Bg2 {[%clk 0:01:12]}  Raf8 {[%clk 0:02:20]} 26. Ref1 {[%clk 0:01:13]}  g5 {[%clk 0:02:06]} 27. Bxh3 {[%clk 0:01:11]}  Qxh3 {[%clk 0:02:05]} 28. Ne4 {[%clk 0:01:12]}  Nxe4 {[%clk 0:02:05]} 29. fxe4 {[%clk 0:01:08]}  Qg4 {[%clk 0:01:57]} 30. Rxf7 {[%clk 0:01:07]}  Rxf7 {[%clk 0:01:56]} 31. Rxf7 {[%clk 0:01:07]}  Kxf7 {[%clk 0:01:57]} 32. Kg2 {[%clk 0:01:07]}  Qxe4+ {[%clk 0:01:56]} 33. Kf2 {[%clk 0:01:06]}  Kg6 {[%clk 0:01:53]} 34. Kg1 {[%clk 0:01:05]}  h5 {[%clk 0:01:50]} 35. h3 {[%clk 0:01:02]}  Qf3 {[%clk 0:01:49]} 36. Kh2 {[%clk 0:01:03]}  g4 {[%clk 0:01:42]} 37. hxg4 {[%clk 0:01:03]}  hxg4 {[%clk 0:01:42]} 38. a5 {[%clk 0:00:58]}  Kf5 {[%clk 0:01:41]} 39. b4 {[%clk 0:00:59]}  cxb4 {[%clk 0:01:39]} 40. Qxb4 {[%clk 0:00:58]}  Qxd5 {[%clk 0:01:38]} 41. Qc3 {[%clk 0:00:53]}  Qc5 {[%clk 0:01:27]} 42. Qd3+ {[%clk 0:00:50]}  Kf6 {[%clk 0:01:24]} 43. Qf1+ {[%clk 0:00:49]}  Ke6 {[%clk 0:01:23]} 44. c4 {[%clk 0:00:50]}  Qe3 {[%clk 0:01:03]} 45. Qb1 {[%clk 0:00:42]}  Qf2+ {[%clk 0:00:59]} 46. Kh1 {[%clk 0:00:42]}  Qf3+ {[%clk 0:00:56]} 47. Kh2 {[%clk 0:00:43]}  Kf6 {[%clk 0:00:54]} 48. Qh7 {[%clk 0:00:41]}  Qf2+ {[%clk 0:00:52]} 49. Kh1 {[%clk 0:00:41]}  Qf1+ {[%clk 0:00:53]} 50. Kh2 {[%clk 0:00:42]}  Qh3+ {[%clk 0:00:52]} 51. Qxh3 {[%clk 0:00:41]}  gxh3 {[%clk 0:00:53]} 52. Kxh3 {[%clk 0:00:42]}  Kg5 {[%clk 0:00:52]} 53. Kg2 {[%clk 0:00:39]}  Kf5 {[%clk 0:00:45]} 54. Kf3 {[%clk 0:00:39]}  Kg5 {[%clk 0:00:44]} 55. Ke4 {[%clk 0:00:26]}  Kg4 {[%clk 0:00:44]} 56. c5 {[%clk 0:00:27]}  dxc5 {[%clk 0:00:42]} 57. Kxe5 {[%clk 0:00:27]}  Kxg3 {[%clk 0:00:41]} 58. Kd5 {[%clk 0:00:28]}  Kf4 {[%clk 0:00:39]} 59. Kxc5 {[%clk 0:00:28]}  Ke5 {[%clk 0:00:40]} 60. Kb6 {[%clk 0:00:28]}  Kd6 {[%clk 0:00:40]} 61. Kxb7 {[%clk 0:00:29]}  Kd7 {[%clk 0:00:40]} 62. Kxa6 {[%clk 0:00:29]}  Kc8 {[%clk 0:00:40]} 63. Kb6 {[%clk 0:00:29]}  Kb8 {[%clk 0:00:40]} 64. a6 {[%clk 0:00:30]}  Ka8 {[%clk 0:00:41]} 65. a7 {[%clk 0:00:31]} 1/2-1/2


[Site "https://www.chess.com"]

[Event "Titled Tuesday Blitz May 16 Early 2023"]
[White "Madaminov, Mukhiddin"]
[Black "Tomiello, Mateus Costamilan"]
[WhiteFideId "14210703"]
[BlackFideId "22701958"]
[WhiteElo "2511"]
[BlackElo "1990"]
[Result "1-0"]
[Round "09"]
[TimeControl "180+2"]
[Date "2023.05.16"]
[WhiteClock "0:00:54"]
[BlackClock "0:00:00"]

1. d4 {[%clk 0:03:00]}  Nf6 {[%clk 0:02:57]} 2. Nc3 {[%clk 0:03:01]}  d5 {[%clk 0:02:53]} 3. Bf4 {[%clk 0:03:02]}  c5 {[%clk 0:02:45]} 4. e3 {[%clk 0:02:58]}  cxd4 {[%clk 0:02:39]} 5. exd4 {[%clk 0:02:57]}  a6 {[%clk 0:02:40]} 6. Nf3 {[%clk 0:02:57]}  Nc6 {[%clk 0:02:39]} 7. Ne5 {[%clk 0:02:58]}  Bd7 {[%clk 0:02:35]} 8. g4 {[%clk 0:02:58]}  e6 {[%clk 0:02:28]} 9. g5 {[%clk 0:02:56]}  Ng8 {[%clk 0:02:28]} 10. Nxc6 {[%clk 0:02:52]}  Bxc6 {[%clk 0:02:23]} 11. Qf3 {[%clk 0:02:51]}  Ne7 {[%clk 0:02:21]} 12. O-O-O {[%clk 0:02:51]}  Qa5 {[%clk 0:02:13]} 13. h4 {[%clk 0:02:47]}  Nf5 {[%clk 0:02:11]} 14. a3 {[%clk 0:02:36]}  b5 {[%clk 0:02:04]} 15. Bh3 {[%clk 0:02:24]}  g6 {[%clk 0:01:52]} 16. Bxf5 {[%clk 0:02:17]}  gxf5 {[%clk 0:01:50]} 17. Be5 {[%clk 0:02:17]}  Rg8 {[%clk 0:01:47]} 18. Na2 {[%clk 0:02:17]}  b4 {[%clk 0:01:29]} 19. Nxb4 {[%clk 0:02:16]}  Bxb4 {[%clk 0:01:28]} 20. axb4 {[%clk 0:02:16]}  Qxb4 {[%clk 0:01:18]} 21. Rd3 {[%clk 0:02:10]}  Rc8 {[%clk 0:01:07]} 22. Rc3 {[%clk 0:02:06]}  Kd7 {[%clk 0:01:04]} 23. b3 {[%clk 0:02:00]}  a5 {[%clk 0:01:03]} 24. Kb2 {[%clk 0:01:49]}  Bb5 {[%clk 0:00:55]} 25. Rxc8 {[%clk 0:01:41]}  Rxc8 {[%clk 0:00:54]} 26. c3 {[%clk 0:01:42]}  Qe7 {[%clk 0:00:42]} 27. Ra1 {[%clk 0:01:37]}  Ra8 {[%clk 0:00:36]} 28. c4 {[%clk 0:01:33]}  Bc6 {[%clk 0:00:34]} 29. c5 {[%clk 0:01:34]}  Qd8 {[%clk 0:00:29]} 30. Qc3 {[%clk 0:01:32]}  a4 {[%clk 0:00:28]} 31. b4 {[%clk 0:01:28]}  Qc8 {[%clk 0:00:23]} 32. Ka3 {[%clk 0:01:23]}  Qa6 {[%clk 0:00:23]} 33. Bh2 {[%clk 0:01:17]}  Ra7 {[%clk 0:00:20]} 34. Qg3 {[%clk 0:01:16]}  Rb7 {[%clk 0:00:15]} 35. Rb1 {[%clk 0:01:11]}  Ke8 {[%clk 0:00:12]} 36. Qc3 {[%clk 0:01:08]}  Qc4 {[%clk 0:00:11]} 37. Qxc4 {[%clk 0:01:04]}  dxc4 {[%clk 0:00:12]} 38. Be5 {[%clk 0:01:02]}  Bb5 {[%clk 0:00:12]} 39. f4 {[%clk 0:01:01]}  Kd7 {[%clk 0:00:12]} 40. d5 {[%clk 0:00:54]}  exd5 {[%clk 0:00:12]} 41. Re1 {[%clk 0:00:55]}  Kc6 {[%clk 0:00:11]} 42. Bd4 {[%clk 0:00:53]}  Rd7 {[%clk 0:00:10]} 43. Re5 {[%clk 0:00:53]}  Rb7 {[%clk 0:00:05]} 44. Rxf5 {[%clk 0:00:52]}  Re7 {[%clk 0:00:06]} 45. Rf6+ {[%clk 0:00:53]}  Kb7 {[%clk 0:00:03]} 46. Rb6+ {[%clk 0:00:53]}  Kc7 {[%clk 0:00:02]} 47. Rxb5 {[%clk 0:00:53]}  Re4 {[%clk 0:00:03]} 48. Be5+ {[%clk 0:00:53]}  Kd7 {[%clk 0:00:02]} 49. Rb7+ {[%clk 0:00:54]}  Ke6 {[%clk 0:00:03]} 50. Rb6+ {[%clk 0:00:53]}  Kf5 {[%clk 0:00:00]} 51. c6 {[%clk 0:00:54]} 1-0


[Site "https://www.chess.com"]

[Event "Titled Tuesday Blitz May 16 Early 2023"]
[White "Arat, Ufuk Sezen"]
[Black "Weetik, Vjacheslav"]
[WhiteFideId "6309089"]
[BlackFideId "4153472"]
[WhiteElo "2289"]
[BlackElo "2469"]
[Result "1-0"]
[Round "09"]
[TimeControl "180+2"]
[Date "2023.05.16"]
[WhiteClock "0:00:04"]
[BlackClock "0:00:00"]

1. e4 {[%clk 0:02:50]}  c6 {[%clk 0:02:59]} 2. d4 {[%clk 0:02:49]}  d5 {[%clk 0:02:59]} 3. e5 {[%clk 0:02:49]}  Bf5 {[%clk 0:02:59]} 4. h4 {[%clk 0:02:49]}  Qb6 {[%clk 0:02:59]} 5. Nf3 {[%clk 0:02:43]}  e6 {[%clk 0:02:56]} 6. Bd3 {[%clk 0:02:41]}  Bg4 {[%clk 0:02:54]} 7. c3 {[%clk 0:02:41]}  h5 {[%clk 0:02:43]} 8. Nbd2 {[%clk 0:02:35]}  Nh6 {[%clk 0:02:40]} 9. Nb3 {[%clk 0:02:33]}  Nd7 {[%clk 0:02:35]} 10. Bg5 {[%clk 0:02:29]}  Nf5 {[%clk 0:02:32]} 11. Qd2 {[%clk 0:02:06]}  Bxf3 {[%clk 0:01:48]} 12. gxf3 {[%clk 0:02:04]}  g6 {[%clk 0:01:39]} 13. Bxf5 {[%clk 0:02:00]}  gxf5 {[%clk 0:01:38]} 14. O-O-O {[%clk 0:01:50]}  a5 {[%clk 0:01:32]} 15. Kb1 {[%clk 0:01:37]}  a4 {[%clk 0:01:32]} 16. Nc1 {[%clk 0:01:37]}  c5 {[%clk 0:01:26]} 17. dxc5 {[%clk 0:01:28]}  Bxc5 {[%clk 0:01:16]} 18. Nd3 {[%clk 0:01:27]}  Ra5 {[%clk 0:01:08]} 19. c4 {[%clk 0:01:03]}  Bd4 {[%clk 0:01:02]} 20. Rc1 {[%clk 0:00:43]}  Nxe5 {[%clk 0:00:46]} 21. Nxe5 {[%clk 0:00:19]}  Bxe5 {[%clk 0:00:45]} 22. cxd5 {[%clk 0:00:14]}  O-O {[%clk 0:00:12]} 23. Rhg1 {[%clk 0:00:12]}  Kh7 {[%clk 0:00:12]} 24. Be3 {[%clk 0:00:08]}  Rxd5 {[%clk 0:00:06]} 25. Qc2 {[%clk 0:00:05]}  Qb5 {[%clk 0:00:03]} 26. Rgd1 {[%clk 0:00:04]}  Rc8 {[%clk 0:00:04]} 27. Rxd5 {[%clk 0:00:02]}  exd5 {[%clk 0:00:02]} 28. Qd2 {[%clk 0:00:02]}  Rxc1+ {[%clk 0:00:01]} 29. Qxc1 {[%clk 0:00:03]}  Qd3+ {[%clk 0:00:01]} 30. Qc2 {[%clk 0:00:04]}  Qf1+ {[%clk 0:00:00]} 31. Bc1 {[%clk 0:00:04]} 1-0


[Site "https://www.chess.com"]

[Event "Titled Tuesday Blitz May 16 Early 2023"]
[White "Zemlyanskii, Ivan"]
[Black "Bethke, Richard"]
[WhiteFideId "24249971"]
[BlackFideId "12959243"]
[WhiteElo "2421"]
[BlackElo "2369"]
[Result "1-0"]
[Round "09"]
[TimeControl "180+2"]
[Date "2023.05.16"]
[WhiteClock "0:00:16"]
[BlackClock "0:00:14"]

1. d4 {[%clk 0:03:00]}  Nf6 {[%clk 0:02:56]} 2. c4 {[%clk 0:03:00]}  e6 {[%clk 0:02:56]} 3. Bf4 {[%clk 0:03:01]}  d5 {[%clk 0:02:57]} 4. Nc3 {[%clk 0:03:01]}  Be7 {[%clk 0:02:55]} 5. e3 {[%clk 0:03:00]}  O-O {[%clk 0:02:55]} 6. Nf3 {[%clk 0:03:01]}  c5 {[%clk 0:02:55]} 7. cxd5 {[%clk 0:02:53]}  Nxd5 {[%clk 0:02:53]} 8. Nxd5 {[%clk 0:02:53]}  exd5 {[%clk 0:02:52]} 9. dxc5 {[%clk 0:02:46]}  Bxc5 {[%clk 0:02:53]} 10. Bd3 {[%clk 0:02:46]}  Nc6 {[%clk 0:02:49]} 11. Bxh7+ {[%clk 0:02:28]}  Kxh7 {[%clk 0:02:49]} 12. Qc2+ {[%clk 0:02:27]}  Kg8 {[%clk 0:02:46]} 13. Qxc5 {[%clk 0:02:24]}  Bg4 {[%clk 0:02:45]} 14. Nd4 {[%clk 0:02:13]}  Rc8 {[%clk 0:02:43]} 15. O-O {[%clk 0:02:05]}  Qd7 {[%clk 0:02:02]} 16. Nxc6 {[%clk 0:01:57]}  Rxc6 {[%clk 0:02:03]} 17. Qxa7 {[%clk 0:01:53]}  Rfc8 {[%clk 0:01:44]} 18. b3 {[%clk 0:01:45]}  Rg6 {[%clk 0:01:39]} 19. Bg3 {[%clk 0:01:33]}  Rc2 {[%clk 0:01:38]} 20. Qd4 {[%clk 0:01:31]}  Qc6 {[%clk 0:01:33]} 21. a4 {[%clk 0:01:26]}  Be2 {[%clk 0:01:26]} 22. Rfe1 {[%clk 0:01:19]}  Rg4 {[%clk 0:01:26]} 23. Qe5 {[%clk 0:01:11]}  Rb4 {[%clk 0:01:25]} 24. Rab1 {[%clk 0:00:52]}  Bd3 {[%clk 0:01:17]} 25. h3 {[%clk 0:00:46]}  Rc3 {[%clk 0:01:06]} 26. Rb2 {[%clk 0:00:43]}  Rbxb3 {[%clk 0:01:05]} 27. Rxb3 {[%clk 0:00:40]}  Rxb3 {[%clk 0:01:06]} 28. a5 {[%clk 0:00:39]}  Be4 {[%clk 0:00:56]} 29. Qd4 {[%clk 0:00:29]}  Ra3 {[%clk 0:00:52]} 30. Qb2 {[%clk 0:00:16]}  Rxa5 {[%clk 0:00:49]} 31. Rc1 {[%clk 0:00:16]}  Rc5 {[%clk 0:00:43]} 32. Rxc5 {[%clk 0:00:16]}  Qxc5 {[%clk 0:00:44]} 33. Qxb7 {[%clk 0:00:16]}  Qc1+ {[%clk 0:00:44]} 34. Kh2 {[%clk 0:00:17]}  Qf1 {[%clk 0:00:33]} 35. f3 {[%clk 0:00:15]}  Bg6 {[%clk 0:00:20]} 36. Qxd5 {[%clk 0:00:14]}  Qe2 {[%clk 0:00:20]} 37. e4 {[%clk 0:00:15]}  Kh7 {[%clk 0:00:20]} 38. h4 {[%clk 0:00:15]}  f6 {[%clk 0:00:18]} 39. h5 {[%clk 0:00:15]}  Be8 {[%clk 0:00:18]} 40. Qf5+ {[%clk 0:00:15]}  Kg8 {[%clk 0:00:17]} 41. h6 {[%clk 0:00:13]}  Qd2 {[%clk 0:00:10]} 42. Qe6+ {[%clk 0:00:11]}  Bf7 {[%clk 0:00:10]} 43. h7+ {[%clk 0:00:05]}  Kxh7 {[%clk 0:00:06]} 44. Qxf7 {[%clk 0:00:06]}  Qh6+ {[%clk 0:00:06]} 45. Kg1 {[%clk 0:00:06]}  Qc1+ {[%clk 0:00:04]} 46. Kf2 {[%clk 0:00:07]}  Qd2+ {[%clk 0:00:05]} 47. Kf1 {[%clk 0:00:07]}  Qd3+ {[%clk 0:00:05]} 48. Ke1 {[%clk 0:00:06]}  Qe3+ {[%clk 0:00:03]} 49. Kd1 {[%clk 0:00:06]}  Qd3+ {[%clk 0:00:03]} 50. Ke1 {[%clk 0:00:05]}  Qe3+ {[%clk 0:00:03]} 51. Kf1 {[%clk 0:00:03]}  Qd3+ {[%clk 0:00:04]} 52. Kg1 {[%clk 0:00:03]}  Qd1+ {[%clk 0:00:03]} 53. Kh2 {[%clk 0:00:01]}  Qd2 {[%clk 0:00:03]} 54. Qh5+ {[%clk 0:00:02]}  Kg8 {[%clk 0:00:03]} 55. Qh3 {[%clk 0:00:03]}  Kf7 {[%clk 0:00:02]} 56. Qg4 {[%clk 0:00:03]}  Qh6+ {[%clk 0:00:01]} 57. Qh4 {[%clk 0:00:02]}  Qd2 {[%clk 0:00:02]} 58. Qh3 {[%clk 0:00:02]}  g6 {[%clk 0:00:03]} 59. Bh4 {[%clk 0:00:02]}  g5 {[%clk 0:00:03]} 60. Bg3 {[%clk 0:00:03]}  Qc1 {[%clk 0:00:03]} 61. Qh7+ {[%clk 0:00:03]}  Ke6 {[%clk 0:00:03]} 62. Qf5+ {[%clk 0:00:03]}  Ke7 {[%clk 0:00:04]} 63. e5 {[%clk 0:00:04]}  Qc3 {[%clk 0:00:03]} 64. exf6+ {[%clk 0:00:04]}  Qxf6 {[%clk 0:00:03]} 65. Qxf6+ {[%clk 0:00:04]}  Kxf6 {[%clk 0:00:04]} 66. Kh3 {[%clk 0:00:05]}  Kf5 {[%clk 0:00:05]} 67. Bf2 {[%clk 0:00:06]}  Kg6 {[%clk 0:00:05]} 68. Kg4 {[%clk 0:00:06]}  Kf6 {[%clk 0:00:05]} 69. Be3 {[%clk 0:00:07]}  Kg6 {[%clk 0:00:06]} 70. Bxg5 {[%clk 0:00:08]}  Kf7 {[%clk 0:00:06]} 71. f4 {[%clk 0:00:09]}  Kf8 {[%clk 0:00:07]} 72. f5 {[%clk 0:00:10]}  Kg8 {[%clk 0:00:08]} 73. Kf4 {[%clk 0:00:10]}  Kf8 {[%clk 0:00:09]} 74. g4 {[%clk 0:00:11]}  Kg8 {[%clk 0:00:10]} 75. Bh4 {[%clk 0:00:12]}  Kf8 {[%clk 0:00:11]} 76. g5 {[%clk 0:00:13]}  Kg8 {[%clk 0:00:12]} 77. Kg4 {[%clk 0:00:14]}  Kf8 {[%clk 0:00:13]} 78. f6 {[%clk 0:00:15]}  Kg8 {[%clk 0:00:14]} 79. Kf5 {[%clk 0:00:16]}  Kf8 {[%clk 0:00:14]} 80. g6 {[%clk 0:00:16]}  Kg8 {[%clk 0:00:15]} 81. Bg5 {[%clk 0:00:17]}  Kf8 {[%clk 0:00:16]} 82. f7 {[%clk 0:00:16]}  Kg7 {[%clk 0:00:16]} 83. Bh6+ {[%clk 0:00:16]}  Kh8 {[%clk 0:00:14]} 84. f8=Q# {[%clk 0:00:16]} 1-0


[Site "https://www.chess.com"]

[Event "Titled Tuesday Blitz May 16 Early 2023"]
[White "Csonka, Balazs"]
[Black "Ladan, Nicholas"]
[WhiteFideId "742910"]
[BlackFideId "30918855"]
[WhiteElo "2404"]
[BlackElo "2167"]
[Result "1-0"]
[Round "09"]
[TimeControl "180+2"]
[Date "2023.05.16"]
[WhiteClock "0:00:52"]
[BlackClock "0:01:33"]

1. d4 {[%clk 0:02:59]}  d5 {[%clk 0:03:00]} 2. Nf3 {[%clk 0:02:57]}  Nf6 {[%clk 0:02:59]} 3. Bf4 {[%clk 0:02:54]}  c5 {[%clk 0:02:58]} 4. e3 {[%clk 0:02:54]}  Nc6 {[%clk 0:02:57]} 5. Nbd2 {[%clk 0:02:55]}  cxd4 {[%clk 0:02:53]} 6. exd4 {[%clk 0:02:54]}  Bf5 {[%clk 0:02:54]} 7. Bb5 {[%clk 0:02:46]}  Qb6 {[%clk 0:02:53]} 8. c4 {[%clk 0:02:45]}  dxc4 {[%clk 0:02:54]} 9. a4 {[%clk 0:02:43]}  e6 {[%clk 0:02:42]} 10. Nxc4 {[%clk 0:01:31]}  Bb4+ {[%clk 0:02:37]} 11. Bd2 {[%clk 0:01:19]}  Bxd2+ {[%clk 0:02:36]} 12. Qxd2 {[%clk 0:01:20]}  Qd8 {[%clk 0:02:33]} 13. Qb4 {[%clk 0:01:15]}  Nd5 {[%clk 0:02:15]} 14. Qc5 {[%clk 0:01:06]}  Qe7 {[%clk 0:01:52]} 15. Bxc6+ {[%clk 0:01:05]}  bxc6 {[%clk 0:01:51]} 16. Qxc6+ {[%clk 0:01:06]}  Qd7 {[%clk 0:01:46]} 17. Qxa8+ {[%clk 0:01:07]}  Ke7 {[%clk 0:01:45]} 18. Qxh8 {[%clk 0:01:06]}  Bd3 {[%clk 0:01:33]} 19. Nfe5 {[%clk 0:00:52]} 1-0


[Site "https://www.chess.com"]

[Event "Titled Tuesday Blitz May 16 Early 2023"]
[White "Khamdamova, Afruza"]
[Black "Begmuratov, Alisher"]
[WhiteFideId "14210444"]
[BlackFideId "14203367"]
[WhiteElo "2312"]
[BlackElo "2387"]
[Result "0-1"]
[Round "09"]
[TimeControl "180+2"]
[Date "2023.05.16"]
[WhiteClock "0:00:09"]
[BlackClock "0:01:53"]

1. e4 {[%clk 0:02:57]}  c6 {[%clk 0:02:58]} 2. Nf3 {[%clk 0:02:55]}  d6 {[%clk 0:02:58]} 3. Nc3 {[%clk 0:02:53]}  Nf6 {[%clk 0:02:58]} 4. d4 {[%clk 0:02:53]}  Bg4 {[%clk 0:02:58]} 5. Bc4 {[%clk 0:02:53]}  e6 {[%clk 0:02:58]} 6. O-O {[%clk 0:02:53]}  d5 {[%clk 0:02:58]} 7. exd5 {[%clk 0:02:51]}  cxd5 {[%clk 0:02:57]} 8. Bd3 {[%clk 0:02:49]}  Nc6 {[%clk 0:02:57]} 9. Be3 {[%clk 0:02:44]}  Bd6 {[%clk 0:02:56]} 10. h3 {[%clk 0:02:45]}  Bh5 {[%clk 0:02:56]} 11. Re1 {[%clk 0:02:40]}  O-O {[%clk 0:02:55]} 12. Be2 {[%clk 0:02:38]}  a6 {[%clk 0:02:50]} 13. Bg5 {[%clk 0:02:34]}  Be7 {[%clk 0:02:47]} 14. Ne5 {[%clk 0:02:33]}  Bxe2 {[%clk 0:02:45]} 15. Nxe2 {[%clk 0:02:29]}  Ne4 {[%clk 0:02:33]} 16. Bxe7 {[%clk 0:02:21]}  Qxe7 {[%clk 0:02:32]} 17. Nxc6 {[%clk 0:02:08]}  bxc6 {[%clk 0:02:33]} 18. f3 {[%clk 0:02:08]}  Nd6 {[%clk 0:02:31]} 19. Qd3 {[%clk 0:02:07]}  a5 {[%clk 0:02:27]} 20. Ng3 {[%clk 0:01:56]}  a4 {[%clk 0:02:21]} 21. b3 {[%clk 0:01:49]}  Qh4 {[%clk 0:02:18]} 22. Kh2 {[%clk 0:01:45]}  Rfc8 {[%clk 0:02:09]} 23. c4 {[%clk 0:01:38]}  Qf4 {[%clk 0:02:03]} 24. Qe3 {[%clk 0:01:17]}  Qxe3 {[%clk 0:02:00]} 25. Rxe3 {[%clk 0:01:17]}  axb3 {[%clk 0:02:01]} 26. c5 {[%clk 0:01:12]}  b2 {[%clk 0:01:58]} 27. Rb1 {[%clk 0:01:12]}  Nc4 {[%clk 0:01:58]} 28. Ree1 {[%clk 0:01:07]}  Rxa2 {[%clk 0:01:56]} 29. Red1 {[%clk 0:01:03]}  Na3 {[%clk 0:01:55]} 30. Ne2 {[%clk 0:00:17]}  Nxb1 {[%clk 0:01:54]} 31. Rxb1 {[%clk 0:00:18]}  Rb8 {[%clk 0:01:54]} 32. Nc1 {[%clk 0:00:09]}  Ra1 {[%clk 0:01:53]} 0-1


[Site "https://www.chess.com"]

[Event "Titled Tuesday Blitz May 16 Early 2023"]
[White "Kvaloy, Aksel Bu"]
[Black "SereneSalmon"]
[WhiteFideId "1528815"]
[WhiteElo "2242"]
[BlackElo "2499"]
[Result "0-1"]
[Round "09"]
[TimeControl "180+2"]
[Date "2023.05.16"]
[WhiteClock "0:02:06"]
[BlackClock "0:01:31"]

1. e4 {[%clk 0:03:00]}  e6 {[%clk 0:02:59]} 2. d4 {[%clk 0:03:00]}  d5 {[%clk 0:02:59]} 3. Nc3 {[%clk 0:03:01]}  Nf6 {[%clk 0:03:00]} 4. e5 {[%clk 0:03:00]}  Nfd7 {[%clk 0:03:00]} 5. f4 {[%clk 0:03:00]}  c5 {[%clk 0:03:00]} 6. Nf3 {[%clk 0:03:01]}  Nc6 {[%clk 0:03:01]} 7. Be3 {[%clk 0:03:00]}  Be7 {[%clk 0:03:01]} 8. Qd2 {[%clk 0:02:55]}  O-O {[%clk 0:03:01]} 9. h4 {[%clk 0:02:55]}  f6 {[%clk 0:02:48]} 10. O-O-O {[%clk 0:02:50]}  c4 {[%clk 0:02:42]} 11. g4 {[%clk 0:02:47]}  b5 {[%clk 0:02:42]} 12. Ne2 {[%clk 0:02:40]}  b4 {[%clk 0:02:36]} 13. c3 {[%clk 0:02:40]}  Qa5 {[%clk 0:02:34]} 14. Kb1 {[%clk 0:02:39]}  Rb8 {[%clk 0:02:26]} 15. Bh3 {[%clk 0:02:38]}  bxc3 {[%clk 0:02:23]} 16. Nxc3 {[%clk 0:02:37]}  Ba3 {[%clk 0:02:18]} 17. exf6 {[%clk 0:02:23]}  Nxf6 {[%clk 0:02:15]} 18. g5 {[%clk 0:02:22]}  Rxb2+ {[%clk 0:02:08]} 19. Qxb2 {[%clk 0:02:21]}  Bxb2 {[%clk 0:02:09]} 20. Kxb2 {[%clk 0:02:22]}  Qb4+ {[%clk 0:02:09]} 21. Kc2 {[%clk 0:02:22]}  Ne4 {[%clk 0:02:00]} 22. Nxe4 {[%clk 0:02:21]}  dxe4 {[%clk 0:02:01]} 23. Ne5 {[%clk 0:02:19]}  Nxe5 {[%clk 0:01:53]} 24. dxe5 {[%clk 0:02:20]}  Qa4+ {[%clk 0:01:45]} 25. Kb2 {[%clk 0:02:18]}  Bd7 {[%clk 0:01:39]} 26. Rd6 {[%clk 0:02:12]}  Rb8+ {[%clk 0:01:38]} 27. Ka1 {[%clk 0:02:12]}  Qc2 {[%clk 0:01:31]} 28. Rd2 {[%clk 0:02:06]}  Qc3+ {[%clk 0:01:31]} 0-1


[Site "https://www.chess.com"]

[Event "Titled Tuesday Blitz May 16 Early 2023"]
[White "Krysa, Leandro"]
[Black "Shapiro, Viktor"]
[WhiteFideId "116807"]
[BlackFideId "4175700"]
[WhiteElo "2489"]
[BlackElo "2152"]
[Result "1-0"]
[Round "09"]
[TimeControl "180+2"]
[Date "2023.05.16"]
[WhiteClock "0:00:43"]
[BlackClock "0:00:16"]

1. e4 {[%clk 0:03:00]}  Nf6 {[%clk 0:02:58]} 2. e5 {[%clk 0:02:58]}  Nd5 {[%clk 0:02:58]} 3. d4 {[%clk 0:02:59]}  d6 {[%clk 0:02:58]} 4. c4 {[%clk 0:03:00]}  Nb6 {[%clk 0:02:57]} 5. f4 {[%clk 0:03:00]}  dxe5 {[%clk 0:02:58]} 6. fxe5 {[%clk 0:03:00]}  c5 {[%clk 0:02:58]} 7. d5 {[%clk 0:03:00]}  g6 {[%clk 0:02:58]} 8. Nc3 {[%clk 0:02:58]}  Bg7 {[%clk 0:02:59]} 9. Bf4 {[%clk 0:02:58]}  O-O {[%clk 0:02:58]} 10. Bd3 {[%clk 0:02:57]}  e6 {[%clk 0:02:56]} 11. d6 {[%clk 0:02:48]}  Nc6 {[%clk 0:02:56]} 12. Nf3 {[%clk 0:02:49]}  Nd7 {[%clk 0:02:56]} 13. Qe2 {[%clk 0:02:48]}  Nd4 {[%clk 0:02:30]} 14. Nxd4 {[%clk 0:02:43]}  cxd4 {[%clk 0:02:30]} 15. Nb5 {[%clk 0:02:43]}  Qa5+ {[%clk 0:02:27]} 16. Bd2 {[%clk 0:02:37]}  Qb6 {[%clk 0:02:26]} 17. Bf4 {[%clk 0:02:36]}  Qc5 {[%clk 0:02:21]} 18. O-O {[%clk 0:02:11]}  a6 {[%clk 0:01:58]} 19. Nc7 {[%clk 0:02:09]}  Rb8 {[%clk 0:01:58]} 20. Rae1 {[%clk 0:02:09]}  Nb6 {[%clk 0:01:31]} 21. Qd2 {[%clk 0:01:26]}  Nxc4 {[%clk 0:01:13]} 22. Qc2 {[%clk 0:01:23]}  b5 {[%clk 0:01:08]} 23. b3 {[%clk 0:01:23]}  Bb7 {[%clk 0:00:48]} 24. bxc4 {[%clk 0:01:22]}  bxc4 {[%clk 0:00:37]} 25. Qxc4 {[%clk 0:01:20]}  Qa7 {[%clk 0:00:37]} 26. Rb1 {[%clk 0:01:10]}  Rfc8 {[%clk 0:00:30]} 27. Rfc1 {[%clk 0:01:09]}  g5 {[%clk 0:00:22]} 28. Bg3 {[%clk 0:01:05]}  h5 {[%clk 0:00:21]} 29. h3 {[%clk 0:01:05]}  h4 {[%clk 0:00:20]} 30. Bh2 {[%clk 0:01:05]}  Bd5 {[%clk 0:00:20]} 31. Rxb8 {[%clk 0:00:56]}  Qxb8 {[%clk 0:00:20]} 32. Qxd4 {[%clk 0:00:52]}  a5 {[%clk 0:00:20]} 33. Rb1 {[%clk 0:00:48]}  Bb7 {[%clk 0:00:18]} 34. Be4 {[%clk 0:00:47]}  Bxe4 {[%clk 0:00:17]} 35. Rxb8 {[%clk 0:00:46]}  Rxb8 {[%clk 0:00:18]} 36. Qxe4 {[%clk 0:00:46]}  Rb2 {[%clk 0:00:18]} 37. d7 {[%clk 0:00:44]}  Rd2 {[%clk 0:00:16]} 38. Qa8+ {[%clk 0:00:43]} 1-0


[Site "https://www.chess.com"]